lending/lending_fUSD_20241229
["ID","MTS","AMOUNT","RATE_DAILY","PERIOD"]
[347132864,1735515037052,-1108.14,0.00013544,2]
[347132865,1735515037061,-500.0,0.00013544,2]
[347132866,1735515037070,-500.0,0.00013544,2]
[347132867,1735515037080,-558.64,0.00013544,2]
[347132868,1735515037090,-518.38,0.00013544,2]
[347132869,1735515037101,-828.17,0.00013544,2]
[347132870,1735515037110,-500.0,0.00013544,2]
[347132871,1735515037119,-650.35,0.00013544,2]
[347132872,1735515037129,-571.12,0.00013544,2]
[347132873,1735515037139,-741.36,0.00013544,2]
[347132874,1735515037148,-682.49,0.00013544,2]
[347132875,1735515037157,-500.0,0.00013544,2]
[347132876,1735515037167,-558.91,0.00013544,2]
[347132877,1735515037177,-500.0,0.00013544,2]
[347132878,1735515037186,-740.49,0.00013544,2]
[347132879,1735515037195,-396.92199488,0.00013544,2]
[347132880,1735515037205,-651.49,0.00013544,2]
[347132881,1735515037214,-683.0,0.00013544,2]
[347132882,1735515037224,-956.02,0.00013544,2]
[347132883,1735515037234,-686.84,0.00013544,2]
[347132884,1735515037243,-676.6,0.00013544,2]
[347132885,1735515037253,-671.27,0.00013544,2]
[347132886,1735515037262,-1026.11,0.00013544,2]
[347132887,1735515037271,-890.04,0.00013544,2]
[347132888,1735515037281,-700.98,0.00013544,2]
[347132889,1735515037290,-797.05,0.00013544,2]
[347132890,1735515037300,-736.52,0.00013544,2]
[347132891,1735515037309,-500.0,0.00013545,2]
[347132892,1735515037319,-500.0,0.00013545,2]
[347132893,1735515037328,-500.0,0.00013545,2]
[347132894,1735515037337,-500.0,0.00013545,2]
[347132895,1735515037347,-500.0,0.00013545,2]
[347132896,1735515037357,-500.0,0.00013545,2]
[347132897,1735515037367,-500.0,0.00013545,2]
[347132898,1735515037376,-500.0,0.00013545,2]
[347132899,1735515037385,-373.95195862,0.00013545,2]
[347132900,1735515037395,-500.0,0.00013545,2]
[347132901,1735515037407,-500.0,0.00013545,2]
[347132902,1735515037417,-500.0,0.00013545,2]
[347132903,1735515037426,-500.0,0.00013545,2]
[347132904,1735515037436,-646.51306597,0.00013545,2]
[347132905,1735515037445,-500.0,0.00013545,2]
[347132906,1735515037454,-500.0,0.00013545,2]
[347132907,1735515037464,-500.0,0.00013545,2]
[347132908,1735515037474,-500.0,0.00013545,2]
[347132909,1735515037484,-500.0,0.00013545,2]
[347132910,1735515037493,-242.3857327,0.00013545,2]
[347132911,1735515037502,-500.0,0.00013545,2]
[347132912,1735515037511,-329.63324125,0.00013545,2]
[347132913,1735515037521,-500.0,0.00013545,2]
[347132914,1735515037531,-500.0,0.00013545,2]
[347132916,1735515037541,-500.0,0.00013545,2]
[347132918,1735515037552,-500.0,0.00013545,2]
[347132920,1735515037563,-500.0,0.00013545,2]
[347132921,1735515037576,-500.0,0.00013545,2]
[347132922,1735515037585,-500.0,0.00013545,2]
[347132923,1735515037595,-500.0,0.00013545,2]
[347132924,1735515037607,-500.0,0.00013545,2]
[347132925,1735515037617,-541.65,0.00013545,2]
[347132926,1735515037627,-500.0,0.00013545,2]
[347132927,1735515037637,-500.0,0.00013545,2]
[347132928,1735515037647,-500.0,0.00013545,2]
[347132929,1735515037657,-500.0,0.00013545,2]
[347132930,1735515037667,-535.59,0.00013545,2]
[347132931,1735515037676,-509.91,0.00013545,2]
[347132932,1735515037686,-500.0,0.00013545,2]
[347132933,1735515037695,-500.0,0.00013545,2]
[347132934,1735515037705,-500.0,0.00013545,2]
[347132935,1735515037715,-500.0,0.00013545,2]
[347132936,1735515037725,-213.44,0.00013545,2]
[347132937,1735515037735,-500.0,0.00013545,2]
[347132938,1735515037745,-520.3,0.00013545,2]
[347132939,1735515037755,-500.0,0.00013545,2]
[347132940,1735515037765,-500.0,0.00013545,2]
[347132942,1735515037776,-500.0,0.00013545,2]
[347132943,1735515037786,-500.0,0.00013545,2]
[347132944,1735515037796,-500.0,0.00013545,2]
[347132945,1735515037805,-500.0,0.00013545,2]
[347132946,1735515037816,-500.0,0.00013545,2]
[347132947,1735515037825,-500.0,0.00013545,2]
[347132948,1735515037835,-500.0,0.00013545,2]
[347132949,1735515037844,-405.87106056,0.00013545,2]
[347132950,1735515037855,-500.0,0.00013545,2]
[347132951,1735515037865,-500.0,0.00013545,2]
[347132952,1735515037874,-500.0,0.00013545,2]
[347132953,1735515037885,-500.0,0.00013545,2]
[347132954,1735515037895,-500.0,0.00013545,2]
[347132955,1735515037905,-500.0,0.00013545,2]
[347132956,1735515037914,-500.0,0.00013545,2]
[347132957,1735515037924,-500.0,0.00013545,2]
[347132958,1735515037933,-500.0,0.00013545,2]
[347132959,1735515037943,-500.0,0.00013545,2]
[347132960,1735515037952,-500.0,0.00013545,2]
[347132961,1735515037962,-500.0,0.00013545,2]
[347132962,1735515037971,-500.0,0.00013545,2]
[347132963,1735515037981,-500.0,0.00013545,2]
[347132964,1735515037991,-500.0,0.00013545,2]
[347132965,1735515038001,-500.0,0.00013545,2]
[347132966,1735515038010,-500.0,0.00013545,2]
[347132967,1735515038020,-500.0,0.00013545,2]
[347132968,1735515038030,-500.0,0.00013545,2]
[347132969,1735515038039,-500.0,0.00013545,2]
[347132970,1735515038049,-500.0,0.00013545,2]
[347132971,1735515038059,-539.67,0.00013545,2]
[347132972,1735515038069,-500.0,0.00013545,2]
[347132973,1735515038082,-500.0,0.00013545,2]
[347132974,1735515038092,-500.0,0.00013545,2]
[347132975,1735515038102,-500.0,0.00013545,2]
[347132976,1735515038112,-500.0,0.00013545,2]
[347132977,1735515038122,-500.0,0.00013545,2]
[347132978,1735515038132,-500.0,0.00013545,2]
[347132979,1735515038142,-500.0,0.00013545,2]
[347132980,1735515038152,-500.0,0.00013545,2]
[347132981,1735515038162,-500.0,0.00013545,2]
[347132982,1735515038172,-500.0,0.00013545,2]
[347132983,1735515038181,-500.0,0.00013545,2]
[347132984,1735515038191,-500.0,0.00013545,2]
[347132985,1735515038201,-500.0,0.00013545,2]
[347132986,1735515038210,-500.0,0.00013545,2]
[347132987,1735515038220,-500.0,0.00013545,2]
[347132988,1735515038229,-500.0,0.00013545,2]
[347132989,1735515038239,-500.0,0.00013545,2]
[347132990,1735515038249,-500.0,0.00013545,2]
[347132992,1735515038258,-544.91,0.00013545,2]
[347132994,1735515038267,-500.0,0.00013545,2]
[347132995,1735515038277,-173.81350935,0.00013545,2]
[347132996,1735515038287,-500.0,0.00013545,2]
[347132997,1735515038296,-500.0,0.00013545,2]
[347132998,1735515038306,-500.0,0.00013545,2]
[347132999,1735515038316,-331.86886499,0.00013545,2]
[347133000,1735515038325,-587.02,0.00013545,2]
[347133001,1735515038335,-500.0,0.00013545,2]
[347133002,1735515038345,-500.0,0.00013545,2]
[347133003,1735515038357,-500.0,0.00013545,2]
[347133004,1735515038366,-500.0,0.00013545,2]
[347133005,1735515038377,-500.0,0.00013545,2]
[347133007,1735515038387,-500.0,0.00013545,2]
[347133009,1735515038397,-500.0,0.00013545,2]
[347133010,1735515038407,-500.0,0.00013545,2]
[347133011,1735515038417,-500.0,0.00013545,2]
[347133012,1735515038427,-500.0,0.00013545,2]
[347133013,1735515038436,-500.0,0.00013545,2]
[347133014,1735515038446,-500.0,0.00013545,2]
[347133015,1735515038456,-308.27562798,0.00013545,2]
[347133016,1735515038466,-500.0,0.00013545,2]
[347133017,1735515038475,-793.26,0.00013545,2]
[347133018,1735515038485,-500.0,0.00013545,2]
[347133019,1735515038495,-500.0,0.00013545,2]
[347133020,1735515038505,-500.0,0.00013545,2]
[347133021,1735515038515,-500.0,0.00013545,2]
[347133022,1735515038524,-500.0,0.00013545,2]
[347133023,1735515038534,-500.0,0.00013545,2]
[347133024,1735515038544,-500.0,0.00013545,2]
[347133025,1735515038554,-500.0,0.00013545,2]
[347133026,1735515038564,-193.98700376,0.00013545,2]
[347133027,1735515038576,-500.0,0.00013545,2]
[347133028,1735515038585,-500.0,0.00013545,2]
[347133029,1735515038595,-500.0,0.00013545,2]
[347133030,1735515038607,-500.0,0.00013545,2]
[347133031,1735515038617,-500.0,0.00013545,2]
[347133032,1735515038627,-500.0,0.00013545,2]
[347133033,1735515038636,-556.51574179,0.00013545,2]
[347133034,1735515038646,-500.0,0.00013545,2]
[347133035,1735515038656,-500.0,0.00013545,2]
[347133036,1735515038665,-500.0,0.00013545,2]
[347133037,1735515038675,-500.0,0.00013545,2]
[347133038,1735515038685,-500.0,0.00013545,2]
[347133039,1735515038694,-524.07,0.00013545,2]
[347133040,1735515038704,-500.0,0.00013545,2]
[347133041,1735515038714,-500.0,0.00013545,2]
[347133042,1735515038724,-500.0,0.00013545,2]
[347133043,1735515038733,-500.0,0.00013545,2]
[347133044,1735515038743,-500.0,0.00013545,2]
[347133045,1735515038752,-500.0,0.00013545,2]
[347133046,1735515038761,-414.38392947,0.00013545,2]
[347133047,1735515038771,-500.0,0.00013545,2]
[347133048,1735515038780,-500.0,0.00013545,2]
[347133049,1735515038790,-500.0,0.00013545,2]
[347133050,1735515038799,-501.60779075,0.00013545,2]
[347133051,1735515038809,-500.0,0.00013545,2]
[347133052,1735515038818,-500.0,0.00013545,2]
[347133053,1735515038827,-500.0,0.00013545,2]
[347133054,1735515038836,-500.0,0.00013545,2]
[347133055,1735515038846,-500.0,0.00013545,2]
[347133056,1735515038856,-500.0,0.00013545,2]
[347133057,1735515038865,-500.0,0.00013545,2]
[347133058,1735515038874,-500.0,0.00013545,2]
[347133059,1735515038884,-500.0,0.00013545,2]
[347133060,1735515038894,-500.0,0.00013545,2]
[347133061,1735515038903,-500.0,0.00013545,2]
[347133062,1735515038912,-500.0,0.00013545,2]
[347133063,1735515038922,-500.0,0.00013545,2]
[347133064,1735515038932,-503.33231785,0.00013545,2]
[347133065,1735515038941,-508.88335829,0.00013545,2]
[347133066,1735515038951,-500.0,0.00013545,2]
[347133067,1735515038961,-500.0,0.00013545,2]
[347133068,1735515038971,-500.0,0.00013545,2]
[347133069,1735515038980,-500.0,0.00013545,2]
[347133070,1735515038990,-567.41,0.00013545,2]
[347133071,1735515038999,-500.0,0.00013545,2]
[347133072,1735515039008,-500.0,0.00013545,2]
[347133073,1735515039018,-500.0,0.00013545,2]
[347133074,1735515039027,-500.0,0.00013545,2]
[347133075,1735515039037,-500.0,0.00013545,2]
[347133076,1735515039047,-500.0,0.00013545,2]
[347133077,1735515039056,-221.80492904,0.00013545,2]
[347133078,1735515039065,-500.0,0.00013545,2]
[347133079,1735515039075,-500.0,0.00013545,2]
[347133080,1735515039084,-500.0,0.00013545,2]
[347133081,1735515039093,-500.0,0.00013545,2]
[347133082,1735515039102,-500.0,0.00013545,2]
[347133083,1735515039111,-500.0,0.00013545,2]
[347133084,1735515039121,-500.0,0.00013545,2]
[347133085,1735515039130,-500.0,0.00013545,2]
[347133086,1735515039139,-500.0,0.00013545,2]
[347133087,1735515039149,-500.0,0.00013545,2]
[347133088,1735515039159,-500.0,0.00013545,2]
[347133089,1735515039168,-500.0,0.00013545,2]
[347133090,1735515039177,-500.0,0.00013545,2]
[347133091,1735515039187,-500.0,0.00013545,2]
[347133092,1735515039196,-507.7906562,0.00013545,2]
[347133093,1735515039206,-500.0,0.00013545,2]
[347133094,1735515039215,-500.0,0.00013545,2]
[347133095,1735515039225,-251.49955573,0.00013545,2]
[347133096,1735515039312,-500.0,0.00013545,2]
[347133097,1735515039322,-500.0,0.00013545,2]
[347133098,1735515039332,-720.21,0.00013545,2]
[347133099,1735515039341,-500.0,0.00013545,2]
[347133100,1735515039351,-500.0,0.00013545,2]
[347133101,1735515039361,-500.0,0.00013545,2]
[347133102,1735515039370,-500.0,0.00013545,2]
[347133103,1735515039380,-500.0,0.00013545,2]
[347133104,1735515039399,-500.0,0.00013545,2]
[347133105,1735515039409,-500.0,0.00013545,2]
[347133106,1735515039419,-500.0,0.00013545,2]
[347133107,1735515039428,-500.0,0.00013545,2]
[347133108,1735515039438,-500.0,0.00013545,2]
[347133109,1735515039448,-500.0,0.00013545,2]
[347133110,1735515039457,-500.0,0.00013545,2]
[347133111,1735515039467,-500.0,0.00013545,2]
[347133112,1735515039477,-500.0,0.00013545,2]
[347133113,1735515039487,-500.0,0.00013545,2]
[347133114,1735515039497,-500.0,0.00013545,2]
[347133115,1735515039507,-500.0,0.00013545,2]
[347133116,1735515039517,-500.0,0.00013545,2]
[347133117,1735515039528,-500.0,0.00013545,2]
[347133118,1735515039538,-500.0,0.00013545,2]
[347133119,1735515039547,-500.0,0.00013545,2]
[347133120,1735515039557,-500.0,0.00013545,2]
[347133121,1735515039572,-524.13173309,0.00013545,2]
[347133122,1735515039582,-500.0,0.00013545,2]
[347133123,1735515039592,-500.0,0.00013545,2]
[347133124,1735515039601,-500.0,0.00013545,2]
[347133125,1735515039612,-500.0,0.00013545,2]
[347133126,1735515039622,-500.0,0.00013545,2]
[347133127,1735515039631,-500.0,0.00013545,2]
[347133128,1735515039640,-500.0,0.00013545,2]
[347133129,1735515039650,-500.0,0.00013545,2]
[347133130,1735515039660,-825.39,0.00013545,2]
[347133131,1735515039670,-1877.51,0.00013545,2]
[347133132,1735515039680,-500.0,0.00013545,2]
[347133133,1735515039690,-500.0,0.00013545,2]
[347133134,1735515039699,-4377.35,0.00013546,2]
[347133135,1735515039709,-1365.07,0.00013546,2]
[347133136,1735515039719,-2286.58,0.00013546,2]
[347133137,1735515039730,-561.73,0.00013546,2]
[347133138,1735515039741,-1384.46,0.00013546,2]
[347133139,1735515039750,-1317.02,0.00013546,2]
[347133140,1735515039760,-1495.71,0.00013546,2]
[347133141,1735515039770,-1011.62,0.00013546,2]
[347133142,1735515039780,-1406.51,0.00013546,2]
[347133143,1735515039790,-3010.3,0.00013546,2]
[347133144,1735515039801,-4019.91,0.00013546,2]
[347133145,1735515039811,-4019.91,0.00013546,2]
[347133146,1735515039821,-16346.07,0.00013546,2]
[347133147,1735515039832,-2665.01,0.00013546,2]
[347133148,1735515039843,-1426.18,0.00013546,2]
[347133149,1735515039857,-1376.27,0.00013546,2]
[347133150,1735515039869,-2654.74,0.00013546,2]
[347133151,1735515039880,-18349.74,0.00013546,2]
[347133152,1735515039891,-848.02,0.00013546,2]
[347133153,1735515039902,-3541.06,0.00013546,2]
[347133154,1735515039912,-2143.48,0.00013546,2]
[347133155,1735515039923,-1407.67,0.00013546,2]
[347133156,1735515039934,-3959.85,0.00013546,2]
[347133157,1735515039945,-500.0,0.00013546,2]
[347133158,1735515039956,-663.08,0.00013546,2]
[347133159,1735515039966,-1374.56,0.00013546,2]
[347133160,1735515039977,-1420.5,0.00013546,2]
[347133161,1735515039988,-1052.04,0.00013546,2]
[347133162,1735515039999,-1802.11,0.00013546,2]
[347133163,1735515040010,-504.64572839,0.00013546,2]
[347133164,1735515040020,-3636.77,0.00013546,2]
[347133165,1735515040030,-941.66,0.00013546,2]
[347133166,1735515040041,-1768.44,0.00013546,2]
[347133167,1735515040051,-2649.82,0.00013546,2]
[347133168,1735515040062,-2150.96,0.00013546,2]
[347133169,1735515040072,-1212.46,0.00013546,2]
[347133170,1735515040082,-954.02,0.00013546,2]
[347133171,1735515040092,-1949.38,0.00013546,2]
[347133172,1735515040101,-200.0,0.00013616,2]
[347133173,1735515040116,-163.01216865,0.00013632,2]
[347133174,1735515040125,-150.0,0.0001366,2]
[347133175,1735515040135,-150.0,0.0001366,2]
[347133176,1735515040145,-500.0,0.00013683,2]
[347133177,1735515040155,-500.0,0.00013683,2]
[347133178,1735515040164,-283.10027114,0.00013683,2]
[347133179,1735515040173,-626.48292899,0.00013683,2]
[347133180,1735515040183,-292.06336294,0.00013683,2]
[347133181,1735515040194,-500.0,0.00013683,2]
[347133182,1735515040203,-500.0,0.00013683,2]
[347133183,1735515040213,-500.0,0.00013683,2]
[347133184,1735515040222,-985.98,0.00013684,2]
[347133185,1735515040231,-500.0,0.00013684,2]
[347133186,1735515040241,-2146.44,0.00013684,2]
[347133187,1735515040250,-804.81,0.00013684,2]
[347133188,1735515040260,-1306.28,0.00013684,2]
[347133189,1735515040269,-8151.39,0.00013684,2]
[347133190,1735515040278,-500.0,0.00013684,2]
[347133191,1735515040288,-1148.14,0.00013684,2]
[347133192,1735515040297,-679.64,0.00013684,2]
[347133193,1735515040307,-1650.9,0.00013684,2]
[347133194,1735515040316,-500.0,0.00013684,2]
[347133195,1735515040326,-3090.99,0.00013684,2]
[347133196,1735515040335,-780.88,0.00013684,2]
[347133197,1735515040345,-500.0,0.00013684,2]
[347133198,1735515040356,-1011.9,0.00013684,2]
[347133199,1735515040365,-922.02,0.00013684,2]
[347133200,1735515040375,-500.0,0.00013684,2]
[347133201,1735515040384,-680.45,0.00013684,2]
[347133202,1735515040394,-279.49704849,0.00013685,2]
[347133203,1735515040403,-500.0,0.00013685,2]
[347133204,1735515040413,-500.0,0.00013685,2]
[347133205,1735515040423,-500.0,0.00013685,2]
[347133206,1735515040433,-500.0,0.00013685,2]
[347133207,1735515040442,-500.0,0.00013685,2]
[347133208,1735515040452,-500.0,0.00013685,2]
[347133209,1735515040462,-527.45,0.00013685,2]
[347133210,1735515040472,-500.0,0.00013685,2]
[347133211,1735515040481,-500.0,0.00013685,2]
[347133212,1735515040490,-511.44,0.00013685,2]
[347133213,1735515040500,-500.0,0.00013685,2]
[347133214,1735515040510,-500.0,0.00013685,2]
[347133215,1735515040520,-500.0,0.00013685,2]
[347133216,1735515040529,-500.0,0.00013685,2]
[347133217,1735515040539,-500.0,0.00013685,2]
[347133218,1735515040549,-500.0,0.00013685,2]
[347133219,1735515040558,-500.0,0.00013685,2]
[347133220,1735515040571,-500.0,0.00013685,2]
[347133221,1735515040581,-500.0,0.00013685,2]
[347133222,1735515040590,-500.0,0.00013685,2]
[347133223,1735515040600,-583.2,0.00013685,2]
[347133224,1735515040611,-500.0,0.00013685,2]
[347133225,1735515040621,-500.0,0.00013685,2]
[347133226,1735515040630,-577.55,0.00013685,2]
[347133227,1735515040639,-500.0,0.00013685,2]
[347133228,1735515040649,-500.0,0.00013685,2]
[347133229,1735515040659,-500.0,0.00013685,2]
[347133230,1735515040669,-500.0,0.00013685,2]
[347133231,1735515040679,-635.39,0.00013685,2]
[347133232,1735515040688,-598.45,0.00013685,2]
[347133233,1735515040697,-500.0,0.00013685,2]
[347133234,1735515040707,-500.0,0.00013685,2]
[347133235,1735515040716,-500.0,0.00013685,2]
[347133236,1735515040726,-588.4,0.00013685,2]
[347133237,1735515040735,-500.0,0.00013685,2]
[347133238,1735515040744,-500.0,0.00013685,2]
[347133239,1735515040754,-552.75,0.00013685,2]
[347133240,1735515040763,-500.0,0.00013685,2]
[347133241,1735515040773,-500.0,0.00013685,2]
[347133242,1735515040783,-500.0,0.00013685,2]
[347133243,1735515040792,-500.0,0.00013685,2]
[347133244,1735515040802,-500.0,0.00013685,2]
[347133245,1735515040811,-500.0,0.00013685,2]
[347133246,1735515040821,-635.77,0.00013685,2]
[347133247,1735515040830,-500.0,0.00013685,2]
[347133248,1735515040840,-500.0,0.00013685,2]
[347133249,1735515040849,-500.0,0.00013685,2]
[347133250,1735515040860,-500.0,0.00013685,2]
[347133251,1735515040870,-500.0,0.00013685,2]
[347133252,1735515040879,-579.66,0.00013685,2]
[347133253,1735515040888,-500.0,0.00013685,2]
[347133254,1735515040897,-589.93,0.00013685,2]
[347133255,1735515040907,-500.0,0.00013685,2]
[347133256,1735515040917,-542.89,0.00013685,2]
[347133257,1735515040926,-500.0,0.00013685,2]
[347133258,1735515040939,-513.81,0.00013685,2]
[347133259,1735515040949,-671.55,0.00013685,2]
[347133260,1735515040959,-500.0,0.00013685,2]
[347133261,1735515040969,-744.82,0.00013685,2]
[347133262,1735515040979,-500.0,0.00013685,2]
[347133263,1735515040988,-500.0,0.00013685,2]
[347133264,1735515040999,-500.0,0.00013685,2]
[347133265,1735515041008,-539.39,0.00013685,2]
[347133266,1735515041018,-2883.59,0.00013685,2]
[347133267,1735515041028,-500.0,0.00013685,2]
[347133268,1735515041037,-500.0,0.00013685,2]
[347133269,1735515041047,-500.0,0.00013685,2]
[347133270,1735515041057,-1817.61,0.00013685,2]
[347133271,1735515041066,-1161.644597,0.00013685,2]
[347133272,1735515041076,-1250.304344,0.00013685,2]
[347133273,1735515041087,-500.0,0.00013685,2]
[347133274,1735515041096,-500.0,0.00013685,2]
[347133275,1735515041107,-565.29,0.00013685,2]
[347133276,1735515041117,-1346.53,0.00013685,2]
[347133277,1735515041127,-686.36,0.00013685,2]
[347133278,1735515041136,-500.0,0.00013685,2]
[347133279,1735515041146,-656.62,0.00013685,2]
[347133280,1735515041155,-500.0,0.00013685,2]
[347133281,1735515041165,-1066.67,0.00013685,2]
[347133282,1735515041174,-545.92,0.00013685,2]
[347133283,1735515041183,-760.28,0.00013685,2]
[347133284,1735515041193,-500.0,0.00013685,2]
[347133285,1735515041202,-500.0,0.00013685,2]
[347133286,1735515041211,-500.0,0.00013685,2]
[347133287,1735515041221,-1040.29,0.00013685,2]
[347133288,1735515041230,-689.69,0.00013685,2]
[347133289,1735515041240,-500.0,0.00013685,2]
[347133290,1735515041250,-500.0,0.00013685,2]
[347133291,1735515041260,-500.0,0.00013685,2]
[347133292,1735515041270,-577.0,0.00013685,2]
[347133293,1735515041279,-674.36,0.00013685,2]
[347133294,1735515041289,-500.0,0.00013685,2]
[347133295,1735515041298,-500.0,0.00013685,2]
[347133296,1735515041307,-500.0,0.00013685,2]
[347133297,1735515041316,-563.83,0.00013685,2]
[347133298,1735515041326,-521.07,0.00013685,2]
[347133299,1735515041335,-5718.98,0.00013685,2]
[347133300,1735515041345,-577.8,0.00013685,2]
[347133301,1735515041357,-311.51764432,0.00013685,2]
[347133302,1735515041366,-211.91,0.00013699,2]
[347133303,1735515041376,-200.0,0.00013699,2]
[347133304,1735515041386,-400.0,0.000137,5]
[347133305,1735515041395,-2222.123008,0.00013798,2]
[347133306,1735515041405,-2222.123008,0.00013798,3]
[347133307,1735515041414,-2222.123008,0.00013798,4]
[347133308,1735515041423,-800.0,0.000138,5]
[347133309,1735515041433,-1075.52,0.00013817,2]
[347133310,1735515041442,-500.0,0.00013817,2]
[347133311,1735515041452,-3750.11,0.00013817,2]
[347133312,1735515041461,-1104.7,0.00013817,2]
[347133313,1735515041471,-628.61,0.00013817,2]
[347133314,1735515041481,-1337.65,0.00013817,2]
[347133315,1735515041490,-695.54,0.00013817,2]
[347133316,1735515041500,-577.55,0.00013817,2]
[347133317,1735515041510,-1764.15,0.00013817,2]
[347133318,1735515041520,-602.66,0.00013817,2]
[347133319,1735515041530,-1437.0,0.00013817,2]
[347133320,1735515041540,-940.3,0.00013817,2]
[347133321,1735515041550,-560.46,0.00013817,2]
[347133322,1735515041559,-500.0,0.00013817,2]
[347133323,1735515041572,-1204.02,0.00013817,2]
[347133324,1735515041582,-1756.8,0.00013817,2]
[347133325,1735515041591,-825.39,0.00013817,2]
[347133326,1735515041600,-551.61,0.00013817,2]
[347133327,1735515041614,-500.0,0.00013817,2]
[347133328,1735515041623,-500.0,0.00013817,2]
[347133329,1735515041633,-500.0,0.00013817,2]
[347133330,1735515041642,-500.0,0.00013818,2]
[347133331,1735515041652,-500.0,0.00013818,2]
[347133332,1735515041661,-500.0,0.00013818,2]
[347133333,1735515041670,-509.36,0.00013818,2]
[347133334,1735515041680,-500.0,0.00013818,2]
[347133335,1735515041690,-500.0,0.00013818,2]
[347133336,1735515041699,-500.0,0.00013818,2]
[347133337,1735515041709,-500.0,0.00013818,2]
[347133338,1735515041719,-500.0,0.00013818,2]
[347133339,1735515041728,-500.0,0.00013818,2]
[347133340,1735515041737,-500.0,0.00013818,2]
[347133341,1735515041747,-500.0,0.00013818,2]
[347133342,1735515041756,-500.0,0.00013818,2]
[347133343,1735515041765,-701.9,0.00013818,2]
[347133344,1735515041775,-541.52,0.00013818,2]
[347133345,1735515041784,-500.0,0.00013818,2]
[347133346,1735515041793,-500.0,0.00013818,2]
[347133347,1735515041803,-899.59,0.00013818,2]
[347133348,1735515041813,-633.75,0.00013818,2]
[347133349,1735515041822,-722.98,0.00013818,2]
[347133350,1735515041832,-500.0,0.00013818,2]
[347133351,1735515041843,-500.0,0.00013818,2]
[347133352,1735515041854,-1123.43,0.00013818,2]
[347133353,1735515041866,-500.0,0.00013818,2]
[347133354,1735515041877,-728.18,0.00013818,2]
[347133355,1735515041887,-500.0,0.00013818,2]
[347133356,1735515041898,-500.0,0.00013818,2]
[347133357,1735515041908,-758.63,0.00013818,2]
[347133358,1735515041918,-500.0,0.00013818,2]
[347133359,1735515041928,-500.0,0.00013818,2]
[347133360,1735515041938,-1072.05,0.00013818,2]
[347133361,1735515041948,-542.56,0.00013818,2]
[347133362,1735515041959,-500.0,0.00013818,2]
[347133363,1735515041969,-500.0,0.00013818,2]
[347133364,1735515041979,-809.45,0.00013818,2]
[347133365,1735515041989,-500.0,0.00013818,2]
[347133366,1735515041999,-682.44,0.00013818,2]
[347133367,1735515042009,-500.0,0.00013818,2]
[347133368,1735515042019,-565.26,0.00013818,2]
[347133369,1735515042029,-835.53,0.00013818,2]
[347133370,1735515042039,-500.0,0.00013818,2]
[347133371,1735515042049,-756.45,0.00013818,2]